bitfinex/quotes_SOLUSD_20250908
["timestamp","ask_amount","ask_price","bid_price","bid_amount"]
[1757331213210,3.17270067,213.32,213.3,0.03]
[1757331213798,5.35801275,213.31,213.3,0.03]
[1757331214017,7.86071342,213.31,213.3,0.03]
[1757331214311,4.68801275,213.31,213.3,0.03]
[1757331214691,2.50270067,213.34,213.3,0.71]
[1757331215214,2.50270067,213.34,213.3,0.03]
[1757331215388,3.17270067,213.34,213.3,0.03]
[1757331215599,0.72,213.33,213.3,0.03]
[1757331215917,7.19049365,213.32,213.3,0.03]
[1757331216096,4.68779298,213.32,213.3,0.03]
[1757331216298,7.91049365,213.32,213.3,0.03]
[1757331218107,7.19049365,213.32,213.3,0.03]
[1757331218309,2.50270067,213.32,213.3,0.03]
[1757331218510,7.19060169,213.32,213.3,0.03]
[1757331218912,7.91060169,213.32,213.3,0.03]
[1757331219097,2.50270067,213.31,213.3,0.03]
[1757331219697,7.91060169,213.32,213.3,0.03]
[1757331220118,0.72,213.31,213.3,0.03]
[1757331220297,7.19060169,213.32,213.3,0.03]
[1757331220499,3.22270067,213.31,213.3,0.03]
[1757331220699,2.50270067,213.31,213.3,0.03]
[1757331221615,3.22270067,213.31,213.3,0.03]
[1757331221825,0.72,213.31,213.3,0.03]
[1757331222020,3.22270067,213.31,213.3,0.03]
[1757331222324,7.19071342,213.31,213.3,0.03]
[1757331222527,7.91071342,213.31,213.3,0.03]
[1757331222743,4.68801275,213.31,213.3,0.03]
[1757331223929,21.50630743,213.31,213.3,0.03]
[1757331225516,23.3834045,213.31,213.3,0.03]
[1757331233721,13.59559401,213.3,213.27,0.03]
[1757331233909,26.0,213.2,213.18,1e-08]
[1757331234106,13.59559401,213.15,213.1,0.7]
[1757331234333,3.92814864,213.13,213.1,0.7]
[1757331234541,3.92814864,213.13,213.08,0.2]
[1757331234831,4.64814864,213.13,213.08,0.2]
[1757331235028,3.92814864,213.13,213.08,0.2]
[1757331235237,2.64999437,213.16,213.12,0.84]
[1757331235409,13.59559401,213.19,213.12,0.84]
[1757331235609,3.92814864,213.18,213.12,0.84]
[1757331236110,3.92814864,213.17,213.12,0.84]
[1757331236330,3.92814864,213.18,213.12,0.84]
[1757331236628,3.92814864,213.15,213.12,0.84]
[1757331237226,3.92814864,213.16,213.12,0.84]
[1757331237430,4.69086576,213.19,213.12,0.84]
[1757331237629,3.92814864,213.15,213.12,0.84]
[1757331238238,13.59559401,213.19,213.12,0.84]
[1757331238430,3.92814864,213.17,213.12,0.84]
[1757331238815,13.59559401,213.19,213.12,0.84]
[1757331239332,3.92814864,213.16,213.12,0.84]
[1757331239540,3.92814864,213.18,213.12,9.46022115]
[1757331239837,37.25559703,213.23,213.13,0.7]
[1757331239838,11.25559703,213.23,213.13,0.7]
[1757331240037,3.92814864,213.2,213.14,3.92814864]
[1757331240333,11.25559703,213.23,213.17,3.92814864]
[1757331240638,15.18374567,213.23,213.18,0.7]
[1757331240822,3.92814864,213.21,213.19,0.7]
[1757331241239,3.92814864,213.21,213.2,0.7]
[1757331241417,3.92814864,213.21,213.15,29.92814864]
[1757331241418,3.92814864,213.21,213.16,0.7]
[1757331241617,3.92814864,213.2,213.16,0.7]
[1757331241836,3.92814864,213.19,213.16,0.7]
[1757331242334,3.92814864,213.19,213.15,26.0]
[1757331242335,3.92814864,213.19,213.17,0.7]
[1757331242747,3.92814864,213.18,213.12,0.84]
[1757331243049,3.92814864,213.16,213.12,0.84]
[1757331243231,3.92814864,213.17,213.12,0.84]
[1757331243415,3.92814864,213.18,213.12,9.46026594]
[1757331243615,3.92814864,213.18,213.13,0.7]
[1757331243844,5.41021736,213.21,213.13,0.7]
[1757331244143,3.92814864,213.19,213.13,4.62814864]
[1757331244341,3.92814864,213.18,213.14,0.7]
[1757331244528,3.92814864,213.17,213.14,0.7]
[1757331244840,3.92814864,213.18,213.15,0.7]
[1757331245350,3.92814864,213.19,213.16,0.7]
[1757331246227,11.25559703,213.23,213.18,3.92814864]
[1757331246562,11.25559703,213.23,213.19,4.61814864]
[1757331246838,11.25559703,213.23,213.2,0.69]
[1757331247039,11.25559703,213.23,213.2,4.61814864]
[1757331247229,3.92814864,213.28,213.22,3.92814864]
[1757331247431,9.29663139,213.29,213.23,4.61814864]
[1757331247644,4.68848275,213.29,213.24,4.61814864]
[1757331247939,22.21200099,213.3,213.25,0.69]
[1757331248141,17.52374265,213.33,213.27,3.92814864]
[1757331248446,3.92814864,213.32,213.26,3.92814864]
[1757331249149,3.92814864,213.32,213.26,4.61814864]
[1757331249324,18.28314073,213.34,213.27,4.61814864]
[1757331249656,3.92814864,213.33,213.27,4.61814864]
[1757331249832,3.92814864,213.33,213.27,3.92814864]
[1757331250149,13.59559401,213.38,213.32,3.92814864]
[1757331250325,3.92814864,213.37,213.32,3.92814864]
[1757331250646,0.68,213.37,213.32,4.61814864]
[1757331250943,3.92814864,213.38,213.33,0.69]
[1757331251151,3.92814864,213.4,213.35,3.92814864]
[1757331251445,3.92814864,213.4,213.36,0.69]
[1757331251628,4.71367021,213.44,213.37,4.61814864]
[1757331251629,5.39367021,213.44,213.37,4.61814864]
[1757331251953,5.39367021,213.44,213.39,3.92814864]
[1757331251954,9.29337606,213.44,213.39,3.92814864]
[1757331252141,9.29337606,213.44,213.37,0.69]
[1757331252142,3.92814864,213.43,213.37,4.61814864]
[1757331252447,3.92814864,213.38,213.3,0.69]
[1757331252630,29.92814864,213.4,213.24,26.0]
[1757331252631,3.92814864,213.31,213.26,0.69]
[1757331252818,3.92814864,213.31,213.27,0.69]
[1757331253021,0.68,213.33,213.24,26.0]
[1757331253232,3.92814864,213.31,213.25,3.92814864]
[1757331253426,8.61645923,213.3,213.24,4.61814864]
[1757331253827,8.61645923,213.3,213.21,51.52505804]
[1757331253828,3.92814864,213.27,213.21,51.52505804]
[1757331254032,3.92814864,213.25,213.21,48.2869094]
[1757331254237,0.68,213.27,213.21,47.5969094]
[1757331254551,9.10797542,213.25,213.21,47.5969094]
[1757331254737,4.68406542,213.49,213.31,26.0]
[1757331255046,4.68406542,213.49,213.28,20.0]
[1757331255047,0.68,213.47,213.37,26.0]
[1757331255248,0.68,213.47,213.42,9.10797542]
[1757331255948,0.68,213.47,213.44,3.40473859]
[1757331256143,5.36459556,213.47,213.45,3.40473859]
[1757331256344,5.36459556,213.47,213.46,3.40473859]
[1757331256648,13.59559401,213.43,213.36,9.10797542]
[1757331256839,22.70356943,213.43,213.36,9.10797542]
[1757331257228,13.59559401,213.43,213.37,9.10797542]
[1757331257749,4.68559647,213.42,213.37,9.10797542]
[1757331258249,22.70356943,213.39,213.33,9.10797542]
[1757331258452,13.59559401,213.37,213.3,9.79797542]
[1757331258750,22.70356943,213.37,213.31,9.10797542]
[1757331258936,13.59559401,213.37,213.32,9.10797542]
[1757331259133,13.59559401,213.37,213.21,13.59559401]
[1757331259134,22.70356943,213.35,213.29,9.10797542]
[1757331259340,22.70356943,213.35,213.28,9.10797542]
[1757331259739,9.10797542,213.32,213.26,62.02332625]
[1757331259947,9.10797542,213.31,213.26,62.02332625]
[1757331260135,0.68,213.31,213.26,71.13130167]
[1757331260343,9.78797542,213.31,213.26,62.02332625]
[1757331260543,13.59559401,213.33,213.26,62.02332625]
[1757331260544,9.10797542,213.29,213.26,62.02332625]
[1757331260848,0.68,213.29,213.26,62.02332625]
[1757331261428,9.10797542,213.3,213.26,62.02332625]
[1757331261645,4.68845234,213.29,213.26,62.02332625]
[1757331262741,23.38356943,213.28,213.26,62.02332625]
[1757331262943,0.68,213.27,213.26,62.02332625]
[1757331263329,22.70356943,213.28,213.26,62.02332625]
[1757331263644,4.68889201,213.27,213.26,62.02332625]
[1757331265536,0.68,213.48,213.29,26.0]
[1757331265737,9.10797542,213.46,213.39,9.10797542]
[1757331265936,9.78797542,213.45,213.38,9.10797542]
[1757331266240,9.10797542,213.42,213.31,0.69]
[1757331266430,9.10797542,213.41,213.34,9.10797542]
[1757331266632,9.78797542,213.41,213.34,9.10797542]
[1757331267359,9.78797542,213.41,213.36,9.10797542]
[1757331267360,0.68,213.41,213.36,9.10797542]
[1757331267654,0.68,213.4,213.31,0.69]
[1757331267865,13.59559401,213.39,213.35,9.10797542]
[1757331268035,13.59559401,213.39,213.36,9.10797542]
[1757331268231,13.59559401,213.39,213.37,9.10797542]
[1757331268547,13.59559401,213.41,213.38,9.10797542]
[1757331268744,14.27559401,213.41,213.33,0.69]
[1757331268959,14.27559401,213.41,213.38,9.10797542]
[1757331269540,4.68603561,213.4,213.33,0.69]
[1757331269747,5.36603561,213.4,213.37,9.10797542]
[1757331270440,0.68,213.4,213.38,9.10797542]
[1757331271360,14.27559401,213.39,213.3,0.69]
[1757331271545,14.27559401,213.39,213.33,9.10797542]
[1757331271546,4.68647483,213.38,213.33,9.10797542]
[1757331271748,14.27559401,213.37,213.33,9.10797542]
[1757331271937,0.68,213.36,213.33,9.10797542]
[1757331272635,0.68,213.36,213.32,9.10797542]
[1757331272956,0.68,213.35,213.28,0.69]
[1757331273147,0.68,213.35,213.32,9.10797542]
[1757331273457,37.71454008,213.41,213.34,9.10797542]
[1757331273458,18.28141004,213.41,213.34,9.10797542]
[1757331273639,18.96141004,213.41,213.37,9.10797542]
[1757331273837,0.68,213.4,213.36,9.10797542]
[1757331274454,13.59559401,213.38,213.34,9.10797542]
[1757331274637,14.27559401,213.38,213.34,9.10797542]
[1757331275369,18.96141004,213.41,213.36,9.10797542]
[1757331275665,4.68647483,213.38,213.31,0.67]
[1757331275868,4.68647483,213.38,213.34,9.10797542]
[1757331276335,4.68647483,213.38,213.31,0.67]
[1757331276540,5.36647483,213.38,213.36,9.10797542]
[1757331277054,5.36647483,213.38,213.31,0.67]
[1757331277244,5.36647483,213.38,213.36,9.10797542]
[1757331277439,5.36647483,213.38,213.31,0.67]
[1757331277644,5.36647483,213.38,213.36,9.10797542]
[1757331277853,5.36647483,213.38,213.29,0.67]
[1757331278053,5.36647483,213.38,213.36,9.10797542]
[1757331278253,0.68,213.37,213.29,0.67]
[1757331278454,0.68,213.37,213.35,9.10797542]
[1757331278654,79.6,213.36,213.35,9.10797542]
[1757331279664,84.28710031,213.36,213.35,9.10797542]
[1757331280361,79.6,213.36,213.35,9.10797542]
[1757331280942,79.6,213.36,213.35,9.77797542]
[1757331281562,79.6,213.36,213.35,9.10797542]
[1757331281869,79.6,213.36,213.33,0.67]
[1757331282051,79.6,213.36,213.35,9.10797542]
[1757331282753,79.6,213.36,213.3,0.67]
[1757331282963,79.6,213.35,213.3,0.67]
[1757331283266,79.6,213.35,213.28,0.67]
[1757331284084,84.28729464,213.35,213.33,9.10797542]
[1757331284256,0.68,213.34,213.33,9.10797542]
[1757331285344,84.28729464,213.35,213.33,9.10797542]
[1757331285564,84.96729464,213.35,213.33,9.10797542]
[1757331285863,79.6,213.35,213.34,9.10797542]
[1757331287843,79.66,213.35,213.34,9.10797542]
[1757331292658,0.06,213.35,213.34,9.10797542]
[1757331292849,0.06,213.35,213.34,14.46532894]
[1757331293470,0.06,213.35,213.34,9.77797542]
[1757331293676,0.06,213.35,213.34,9.10797542]
[1757331294477,0.06,213.35,213.34,6.17137778]
[1757331295774,0.06,213.35,213.34,6.84137778]
[1757331298568,0.06,213.35,213.34,6.17137778]
[1757331300575,0.06,213.35,213.34,6.84137778]
[1757331301568,0.06,213.35,213.34,6.17137778]
[1757331301772,0.06,213.35,213.34,10.8587313]
[1757331301960,0.06,213.35,213.34,11.5287313]
[1757331302478,0.06,213.35,213.34,6.17137778]
[1757331302679,0.06,213.38,213.34,11.5287313]
[1757331302885,10.94605508,213.45,213.37,32.17137778]
[1757331303059,10.94605508,213.45,213.44,6.17137778]
[1757331303263,11.62605508,213.45,213.44,6.17137778]
[1757331303462,0.06,213.46,213.44,13.01275556]
[1757331303778,0.06,213.46,213.42,26.0]
[1757331303779,0.06,213.51,213.46,4.68471844]
[1757331304094,0.06,213.51,213.5,6.17137778]
[1757331304759,0.06,213.51,213.5,6.84137778]
[1757331305265,0.06,213.52,213.5,6.84137778]
[1757331305465,0.06,213.52,213.51,6.87137778]
[1757331306274,0.06,213.56,213.51,37.55499915]
[1757331306464,0.06,213.56,213.54,26.0]
[1757331306785,0.06,213.57,213.55,6.17137778]
[1757331306984,0.06,213.57,213.56,12.34275556]
[1757331307195,0.1,213.58,213.57,6.17137778]
[1757331307985,0.1,213.58,213.57,6.87137778]
[1757331309378,0.1,213.58,213.57,13.04275556]
[1757331309589,0.06,213.61,213.58,12.34275556]
[1757331309762,0.06,213.61,213.6,6.17137778]
[1757331311376,0.06,213.61,213.6,6.87137778]
[1757331311698,0.1,213.62,213.6,6.87137778]
[1757331311980,0.1,213.66,213.64,26.0]
[1757331312181,0.1,213.66,213.65,6.17137778]
[1757331313786,0.1,213.66,213.65,6.87137778]
[1757331314192,0.1,213.69,213.68,26.0]
[1757331314481,0.1,213.69,213.68,6.17137778]
[1757331314688,0.1,213.69,213.68,6.87137778]
[1757331315062,0.06,213.73,213.71,26.0]
[1757331315260,0.06,213.73,213.72,6.17137778]
[1757331315487,0.06,213.73,213.72,12.34275556]
[1757331316193,0.06,213.73,213.72,13.04275556]
[1757331316561,5.32726383,213.81,213.75,26.0]
[1757331316778,5.32726383,213.81,213.8,6.17137778]
[1757331317666,0.65,213.84,213.8,6.17137778]
[1757331317887,4.6765866,213.84,213.83,6.17137778]
[1757331318470,5.3265866,213.84,213.75,26.0]
[1757331318672,13.59559401,213.78,213.72,6.17137778]
[1757331318887,0.65,213.77,213.72,6.17137778]
[1757331319185,0.65,213.77,213.66,0.7]
[1757331319186,0.65,213.76,213.71,6.17137778]
[1757331319494,0.65,213.75,213.67,26.0]
[1757331319690,6.17137778,213.77,213.71,6.17137778]
[1757331319869,0.65,213.76,213.71,6.17137778]
[1757331320069,0.65,213.75,213.67,26.0]
[1757331320287,0.65,213.75,213.71,6.17137778]
[1757331320487,0.65,213.74,213.7,6.17137778]
[1757331320685,0.65,213.76,213.72,6.17137778]
[1757331320878,0.65,213.75,213.72,6.17137778]
[1757331321077,0.65,213.74,213.71,6.17137778]
[1757331321481,0.65,213.74,213.72,6.17137778]
[1757331321790,0.65,213.74,213.71,6.17137778]
[1757331321988,0.65,213.74,213.72,6.17137778]
[1757331322291,0.65,213.73,213.66,0.7]
[1757331322471,6.82137778,213.73,213.67,6.17137778]
[1757331322672,4.67882454,213.73,213.7,6.17137778]
[1757331322880,0.65,213.72,213.66,0.7]
[1757331323073,0.65,213.72,213.7,6.17137778]
[1757331323892,0.65,213.71,213.59,6.17137778]
[1757331324107,14.24559401,213.7,213.63,6.17137778]
[1757331324276,19.76697179,213.7,213.64,6.17137778]
[1757331324480,0.65,213.69,213.64,6.17137778]
[1757331324692,4.68011419,213.67,213.65,6.17137778]
[1757331324874,4.68011419,213.67,213.64,6.17137778]
[1757331325081,0.65,213.68,213.66,6.17137778]
[1757331325391,0.65,213.67,213.65,6.17137778]
[1757331326397,0.65,213.66,213.58,0.7]
[1757331326698,4.6805523,213.65,213.62,6.17137778]
[1757331326887,5.3305523,213.65,213.62,6.17137778]
[1757331327489,5.3305523,213.65,213.63,6.17137778]
[1757331328579,5.32989517,213.68,213.64,6.17137778]
[1757331328978,0.65,213.67,213.64,6.17137778]
[1757331329601,4.67969344,213.69,213.66,6.17137778]
[1757331329798,5.32969344,213.69,213.66,6.17137778]
[1757331330580,5.32969344,213.69,213.67,6.17137778]
[1757331331199,4.67901927,213.72,213.68,6.87137778]
[1757331331407,5.32901927,213.72,213.64,0.7]
[1757331331708,0.65,213.75,213.71,6.17137778]
[1757331331910,0.65,213.74,213.63,26.0]
[1757331332213,6.17137778,213.69,213.63,6.17137778]
[1757331332504,4.68011419,213.67,213.63,6.17137778]
[1757331332710,0.65,213.66,213.62,6.17137778]
[1757331332885,6.82137778,213.65,213.56,0.7]
[1757331333204,6.82137778,213.65,213.59,6.17137778]
[1757331333409,0.65,213.64,213.59,6.17137778]
[1757331333607,0.65,213.63,213.59,6.17137778]
[1757331333813,0.65,213.66,213.61,6.17137778]
[1757331334118,0.65,213.66,213.62,6.17137778]
[1757331334286,0.65,213.66,213.63,6.17137778]
[1757331334811,4.6805523,213.65,213.6,0.7]
[1757331335110,4.6805523,213.65,213.61,0.7]
[1757331335493,5.32901927,213.72,213.62,0.66]
[1757331335805,4.67872022,213.74,213.71,6.17137778]
[1757331336006,0.65,213.73,213.71,6.17137778]
[1757331336199,5.32872022,213.74,213.71,6.17137778]
[1757331336400,0.65,213.73,213.71,6.17137778]
[1757331336604,4.67901927,213.72,213.71,6.17137778]
[1757331337110,6.17137778,213.8,213.71,6.17137778]
[1757331337303,0.65,213.78,213.68,0.66]
[1757331337904,0.65,213.78,213.75,6.17137778]
[1757331338105,13.59559401,213.79,213.75,6.17137778]
[1757331338305,0.65,213.77,213.75,6.17137778]
[1757331338500,0.65,213.77,213.69,0.66]
[1757331338805,4.67814371,213.76,213.75,6.17137778]
[1757331339389,4.67814371,213.76,213.69,0.66]
[1757331339593,5.32814371,213.76,213.73,6.17137778]
[1757331339787,4.67814371,213.76,213.73,6.17137778]
[1757331340108,5.32814371,213.76,213.73,6.17137778]
[1757331340305,5.32814371,213.76,213.75,6.17137778]
[1757331340483,5.32748725,213.79,213.66,30.68033323]
[1757331340688,5.32748725,213.79,213.77,6.17137778]
[1757331340907,4.67748725,213.79,213.78,6.17137778]
[1757331341110,5.32748725,213.79,213.77,6.17137778]
[1757331341505,5.32748725,213.79,213.75,6.17137778]
[1757331341811,4.67748725,213.79,213.75,6.17137778]
[1757331342009,0.65,213.78,213.75,6.17137778]
[1757331342390,0.65,213.77,213.69,26.0]
[1757331342590,0.65,213.76,213.72,6.17137778]
[1757331342814,0.65,213.75,213.67,0.66]
[1757331342994,0.65,213.75,213.73,6.17137778]
[1757331343190,17.02273705,213.77,213.74,6.17137778]
[1757331343509,4.67792487,213.77,213.76,6.17137778]
[1757331343902,4.67792487,213.77,213.71,0.66]
[1757331344109,5.32792487,213.77,213.75,6.17137778]
[1757331344296,4.67792487,213.77,213.74,6.17137778]
[1757331344496,4.67792487,213.77,213.75,6.17137778]
[1757331344700,5.32792487,213.77,213.75,6.17137778]
[1757331344998,4.67836257,213.75,213.68,0.66]
[1757331345206,4.67836257,213.75,213.74,6.17137778]
[1757331346212,4.7376881,213.79,213.74,6.17137778]
[1757331346517,0.65,213.78,213.75,6.17137778]
[1757331346715,0.65,213.77,213.75,6.17137778]
[1757331347020,4.7376881,213.79,213.76,6.17137778]
[1757331347318,0.65,213.78,213.76,6.17137778]
[1757331347816,6.82137778,213.77,213.67,0.66]
[1757331347997,6.82137778,213.77,213.72,6.17137778]
[1757331348313,4.67836257,213.75,213.72,6.17137778]
[1757331348724,0.65,213.74,213.72,6.17137778]
[1757331349707,4.67836257,213.75,213.73,6.17137778]
[1757331349897,4.67836257,213.75,213.74,6.17137778]
[1757331350320,4.67814371,213.76,213.74,6.17137778]
[1757331350497,5.32814371,213.76,213.74,6.17137778]
[1757331350698,0.65,213.75,213.74,6.17137778]
[1757331351709,5.32836257,213.75,213.74,6.17137778]
[1757331352104,4.67836257,213.75,213.74,6.17137778]
[1757331352303,5.32836257,213.75,213.73,6.17137778]
[1757331352510,0.65,213.74,213.72,6.17137778]
[1757331353097,0.65,213.73,213.69,6.17137778]
[1757331353309,0.65,213.73,213.7,6.17137778]
[1757331353908,5.32901927,213.72,213.69,6.17137778]
[1757331354425,5.32901927,213.72,213.69,9.0648876]
[1757331354722,5.32901927,213.72,213.7,9.0648876]
[1757331355419,5.32901927,213.72,213.69,9.0648876]
[1757331356407,5.32901927,213.72,213.7,9.0648876]
[1757331356713,4.67858145,213.74,213.71,9.0648876]
[1757331356912,4.67858145,213.74,213.73,9.0648876]
[1757331358102,4.67814371,213.76,213.73,9.0648876]
[1757331358331,0.65,213.75,213.73,9.0648876]
[1757331359001,0.65,213.75,213.72,9.0648876]
[1757331359402,4.67858145,213.74,213.72,9.0648876]
[1757331360604,9.7148876,213.73,213.63,0.66]
[1757331360812,0.65,213.73,213.66,9.0648876]
[1757331361126,9.7148876,213.72,213.66,9.0648876]
[1757331361499,17.02733377,213.71,213.66,9.0648876]
[1757331361725,0.65,213.7,213.65,9.0648876]
[1757331362032,0.65,213.7,213.66,9.0648876]
[1757331362218,0.65,213.7,213.67,9.0648876]
[1757331362623,0.65,213.7,213.63,0.66]
[1757331362624,4.67923822,213.71,213.68,9.0648876]
[1757331362822,5.32923822,213.71,213.68,9.0648876]
[1757331364011,5.32923822,213.71,213.65,0.66]
[1757331364213,5.32923822,213.71,213.68,9.0648876]
[1757331364413,17.02733377,213.71,213.67,9.0648876]
[1757331364630,17.02733377,213.71,213.69,0.03]
[1757331366213,16.37733377,213.71,213.69,0.03]
[1757331366430,4.67923822,213.71,213.69,9.0948876]
[1757331368925,4.67923822,213.71,213.69,0.03]
[1757331369163,9.7448876,213.7,213.69,0.03]
[1757331369321,0.68,213.7,213.69,0.03]
[1757331369643,5.35945718,213.7,213.69,0.03]
[1757331370112,4.67945718,213.7,213.69,0.03]
[1757331370644,5.35945718,213.7,213.69,0.03]
[1757331372551,14.42434478,213.7,213.69,0.03]
[1757331372718,13.59559401,213.68,213.67,1e-08]
[1757331372925,22.66048161,213.68,213.67,1e-08]
[1757331373142,23.34048161,213.68,213.67,1e-08]
[1757331373349,9.7448876,213.68,213.67,1e-08]
[1757331373737,5.35989517,213.68,213.67,1e-08]
[1757331373939,14.42478277,213.68,213.67,1e-08]
[1757331374249,5.35989517,213.68,213.67,1e-08]
[1757331375135,4.67989517,213.68,213.67,1e-08]
[1757331375327,4.67989517,213.68,213.67,9.73488761]
[1757331375527,4.67989517,213.68,213.67,9.06488761]
[1757331376132,16.37762427,213.71,213.67,9.06488761]
[1757331376329,16.37762427,213.71,213.68,3.90539772]
[1757331376659,4.67923822,213.71,213.69,3.90539772]
[1757331376851,16.374269,213.75,213.7,3.90539772]
[1757331377040,16.374269,213.75,213.71,3.90539772]
[1757331377041,17.054269,213.75,213.71,3.90539772]
[1757331377565,17.054269,213.75,213.72,3.90539772]
[1757331377933,0.68,213.74,213.71,3.90539772]
[1757331378457,16.374269,213.75,213.71,9.06341782]
[1757331378959,0.68,213.74,213.67,1e-08]
[1757331379145,9.74341782,213.74,213.68,9.06341782]
[1757331379961,0.68,213.74,213.69,9.06341782]
[1757331380264,0.68,213.73,213.69,9.06341782]
[1757331380454,4.67901927,213.72,213.69,9.06341782]
[1757331381442,4.67901927,213.72,213.69,9.73341782]
[1757331382065,79.6,213.76,213.71,9.06341782]
[1757331382367,79.6,213.75,213.72,9.06341782]
[1757331382536,79.6,213.75,213.7,9.06341782]
[1757331382537,0.06,213.74,213.7,9.06341782]
[1757331382937,0.06,213.74,213.71,9.06341782]
[1757331384658,0.06,213.74,213.72,0.67]
[1757331384858,0.06,213.74,213.72,9.73341782]
[1757331385059,0.06,213.74,213.73,9.06341782]
[1757331385258,0.06,213.74,213.73,9.73341782]
[1757331385860,0.06,213.74,213.7,0.67]
[1757331386048,0.06,213.74,213.69,0.03]
[1757331386049,0.68,213.73,213.69,0.03]
[1757331386244,0.68,213.73,213.69,9.09341782]
[1757331386754,4.67901927,213.72,213.69,9.09341782]
[1757331386950,0.68,213.71,213.69,0.03]
[1757331387352,9.74341782,213.7,213.69,0.03]
[1757331388143,13.59559401,213.69,213.66,1e-08]
[1757331388351,22.65901183,213.67,213.66,1e-08]
[1757331388776,5.36011419,213.67,213.66,1e-08]
[1757331389362,4.68011419,213.67,213.66,1e-08]
[1757331389743,5.36011419,213.67,213.66,1e-08]
[1757331391057,14.42353201,213.67,213.66,1e-08]
[1757331391572,28.01912602,213.67,213.66,1e-08]
[1757331395386,18.9557082,213.67,213.66,1e-08]
[1757331395553,28.01912602,213.67,213.66,1e-08]
[1757331395751,29.8933207,213.67,213.66,1e-08]
[1757331396360,39.59559401,213.65,213.64,0.03]
[1757331396576,48.65901183,213.65,213.64,0.03]
[1757331396758,49.32901183,213.65,213.64,0.03]
[1757331398371,48.85648839,213.65,213.64,0.03]
[1757331399472,60.55786915,213.65,213.56,0.03]
[1757331399778,3.91034208,213.6,213.56,0.03]
[1757331399981,79.6,213.59,213.56,0.03]
[1757331400273,84.89856566,213.59,213.56,0.03]
[1757331400576,4.68208633,213.58,213.56,0.03]
[1757331400755,4.68208633,213.58,213.56,0.72]
[1757331401868,4.68208633,213.58,213.56,0.03]
[1757331403277,4.68208633,213.58,213.57,0.69]
[1757331403479,84.22856566,213.59,213.57,0.69]
[1757331403657,84.22856566,213.59,213.57,4.60034208]
[1757331403855,88.91043587,213.59,213.58,0.69]
[1757331404273,88.91043587,213.59,213.56,4.63034208]
[1757331404470,88.91043587,213.59,213.57,0.69]
[1757331404671,88.91043587,213.59,213.57,4.60034208]
[1757331404858,88.91043587,213.59,213.58,4.60034208]
[1757331405283,9.31043587,213.59,213.58,4.60034208]
[1757331407167,4.68142877,213.61,213.58,4.60034208]
[1757331407366,4.68142877,213.61,213.59,4.60034208]
[1757331407769,4.68142877,213.61,213.58,3.91034208]
[1757331407964,9.47567035,213.61,213.58,3.91034208]
[1757331408160,4.68142877,213.61,213.58,4.60034208]
[1757331408861,4.68142877,213.61,213.59,0.69]
[1757331410073,4.68142877,213.61,213.59,4.60034208]
[1757331410264,4.68142877,213.61,213.59,0.69]
[1757331410585,4.68142877,213.61,213.59,4.60034208]
[1757331411089,4.6805523,213.65,213.6,4.60034208]
[1757331411389,4.6805523,213.65,213.62,3.91034208]
[1757331411959,4.6805523,213.65,213.63,3.91034208]
[1757331412379,4.6805523,213.65,213.64,4.60034208]
[1757331412583,4.6805523,213.65,213.64,3.91034208]
[1757331412766,9.32419201,213.65,213.63,3.91034208]
[1757331412964,9.32419201,213.65,213.62,3.91034208]
[1757331413585,4.6805523,213.65,213.62,3.91034208]
[1757331414489,5.3505523,213.65,213.61,3.91034208]
[1757331414680,0.67,213.64,213.59,3.91034208]
[1757331415082,0.67,213.63,213.58,3.91034208]
[1757331415281,0.67,213.63,213.58,4.60034208]
[1757331415786,0.67,213.63,213.59,3.91034208]
[1757331416287,4.68120962,213.62,213.59,2.50152031]
[1757331418998,4.68103164,213.63,213.61,2.50152031]
[1757331420480,4.68103164,213.63,213.62,2.50152031]
[1757331421479,84.34078674,213.64,213.62,3.19152031]
[1757331421787,4.74078674,213.64,213.63,2.50152031]
[1757331422099,0.06,213.64,213.63,2.50152031]
[1757331427277,0.72,213.64,213.6,2.50152031]
[1757331427900,0.66,213.63,213.6,2.50152031]